bitfinex-derivatives/quotes_ETHF0:USTF0_20210111
["timestamp","ask_amount","ask_price","bid_price","bid_amount"]
[1610383266788,6.15459,943.92,942.88,61.2199]
[1610383268187,6.15459,943.92,941.53,79.9395]
[1610383268588,4.00959,942.35,941.76,4.00959]
[1610383268987,1.884,943.15,941.76,4.00959]
[1610383269189,1.884,943.15,941.76,6.06659]
[1610383269791,1.884,943.15,941.76,2.057]
[1610383270189,1.884,943.15,941.53,79.9395]
[1610383270690,4.00959,941.89,941.53,79.9395]
[1610383270892,5.99759,941.89,941.53,79.9395]
[1610383271293,5.99759,941.89,940.61,2.222]
[1610383271498,5.99759,941.89,937.69,0.327996]
[1610383271702,5.99759,941.89,937.63,0.328122]
[1610383272093,5.99759,941.89,937.41,0.32813]
[1610383272494,5.99759,941.89,936.91,0.328295]
[1610383272694,4.00959,939.77,936.71,0.328353]
[1610383272893,6.25059,939.77,936.71,0.328353]
[1610383273093,6.25059,939.77,936.5,0.328491]
[1610383273495,6.25059,939.77,936.16,0.328518]
[1610383273693,6.25059,939.77,935.95,0.328581]
[1610383274093,6.25059,939.77,935.48,0.328641]
[1610383274494,6.25059,939.77,935.21,0.328811]
[1610383274695,4.00959,936.58,936.54,4.00959]
[1610383274897,4.00959,936.58,934.7,0.32892]
[1610383275095,1.551,937.66,934.61,0.328962]
[1610383275295,1.551,937.66,934.61,1.981962]
[1610383275496,2.241,939.77,934.61,1.653]
[1610383275697,2.241,939.77,934.71,0.32896]
[1610383276099,2.241,939.77,935.09,0.328747]
[1610383276297,2.241,939.77,936.08,73.3936]
[1610383276497,2.241,939.77,936.08,75.6836]
[1610383276698,4.00959,939.31,938.62,4.00959]
[1610383276897,5.71959,939.31,936.08,75.6836]
[1610383278699,1.71,939.31,936.26,4.00959]
[1610383280301,2.241,939.77,936.26,4.00959]
[1610383280501,1.32374,941.27,936.26,4.00959]
[1610383280701,4.00959,938.55,938.47,4.00959]
[1610383280902,4.00959,938.55,936.08,75.6836]
[1610383281701,1.865,939.94,937.0,74.5029]
[1610383282003,1.865,939.94,937.0,76.4389]
[1610383282202,76.603,940.02,938.55,4.9999]
[1610383282402,76.603,940.02,938.55,7.2779]
[1610383284708,76.603,940.02,940.01,4.00959]
[1610383284907,76.603,940.02,940.01,6.18359]
[1610383285608,6.5674,941.88,940.01,6.18359]
[1610383285832,1.05914,944.01,940.01,6.18359]
[1610383286008,1.07132,945.22,940.01,6.18359]
[1610383286808,1.07132,945.22,941.98,4.00959]
[1610383287008,1.07132,945.22,941.98,6.15159]
[1610383287612,6.4463,946.25,941.98,6.15159]
[1610383287613,1.07943,946.21,941.98,6.15159]
[1610383288811,4.00959,943.6,941.98,2.142]
[1610383289012,2.362,943.6,941.98,2.142]
[1610383289512,6.4463,946.25,941.98,2.142]
[1610383289715,2.427,943.6,941.98,2.142]
[1610383290819,6.4463,946.25,941.98,2.142]
[1610383292218,6.4463,946.25,941.93,75.2127]
[1610383292419,1.561,946.25,941.98,2.3]
[1610383292820,4.00959,944.71,941.98,2.3]
[1610383293021,6.22759,944.71,941.98,2.3]
[1610383294620,2.218,944.71,941.98,2.3]
[1610383294823,2.218,944.71,944.7,4.00959]
[1610383295021,2.218,944.71,943.47,2.223]
[1610383296022,2.218,944.71,941.98,2.3]
[1610383296424,1.561,946.25,941.98,2.3]
[1610383296625,2.206,944.71,942.81,1.03758]
[1610383297027,2.206,944.71,943.2,1.07829]
[1610383297225,2.267,946.53,943.2,3.16929]
[1610383297826,2.1509,946.53,943.2,3.16929]
[1610383298026,81.9035,949.28,945.06,1.03758]
[1610383298231,81.9035,949.28,945.06,3.28158]
[1610383299428,81.9035,949.28,946.39,1.03758]
[1610383299648,81.9035,949.28,946.39,2.86058]
[1610383300028,81.9035,949.28,946.39,1.823]
[1610383300428,76.8742,951.17,946.39,1.823]
[1610383300829,4.00959,949.24,946.39,1.823]
[1610383301030,6.02859,949.24,946.39,1.823]
[1610383302431,2.019,949.24,946.39,1.823]
[1610383302833,4.00959,948.78,948.74,4.00959]
[1610383303033,6.28859,948.78,946.68,60.0803]
[1610383304036,1.05914,948.52,941.88,0.32645]
[1610383304235,1.32374,947.71,941.88,0.32645]
[1610383304436,1.32374,946.15,941.3,0.32663]
[1610383304636,3.36174,946.15,941.3,0.32663]
[1610383305037,2.038,946.15,939.89,0.32679]
[1610383305437,2.038,946.15,941.11,1.00189]
[1610383305637,2.038,946.15,941.11,3.09589]
[1610383305837,2.038,946.15,941.74,1.00028]
[1610383306037,2.038,946.15,941.93,30.0]
[1610383306237,2.038,946.15,941.93,32.248]
[1610383306838,2.038,946.15,946.14,4.00959]
[1610383307839,2.038,946.15,945.2,1.788]
[1610383308238,2.038,946.15,941.74,2.8122]
[1610383308438,2.038,946.15,941.74,2.486]
[1610383308891,4.00959,944.42,943.97,4.00959]
[1610383309460,4.00959,944.42,941.83,72.2451]
[1610383310247,2.403,945.35,941.83,72.2451]
[1610383310448,1.873,945.64,941.83,72.2451]
[1610383310857,1.873,945.64,945.63,4.00959]
[1610383311047,2.038,946.15,945.63,4.00959]
[1610383311266,4.00959,946.39,945.63,4.00959]
[1610383311656,4.00959,946.39,945.38,1.536]
[1610383311859,6.02059,946.39,941.83,72.2451]
[1610383312866,2.011,946.39,944.21,4.00959]
[1610383313054,2.011,946.39,944.21,5.59959]
[1610383313646,2.011,946.39,941.83,72.2451]
[1610383313844,9.0,946.38,944.21,2.361]
[1610383314044,9.0,946.38,941.83,72.2451]
[1610383314843,4.00959,943.71,942.83,4.00959]
[1610383315248,4.00959,943.71,941.83,72.2451]
[1610383315646,6.31559,943.71,940.72,67.2193]
[1610383316848,4.00959,942.97,941.64,4.00959]
[1610383317045,2.306,943.71,941.64,4.00959]
[1610383317246,1.641,944.07,941.64,6.41759]
[1610383317746,71.1301,944.5,941.64,6.41759]
[1610383318945,4.00959,943.12,942.77,4.00959]
[1610383319146,1.751,944.23,942.77,4.00959]
[1610383319347,1.751,944.23,942.77,6.43859]
[1610383320148,1.01539,946.83,942.77,6.43859]
[1610383320149,1.01539,948.73,942.77,6.43859]
[1610383320549,9.0,946.84,942.77,6.43859]
[1610383320749,10.932,946.84,942.77,6.43859]
[1610383320954,1.932,946.84,944.93,4.00959]
[1610383321549,1.932,946.84,944.93,5.77359]
[1610383322553,1.932,946.84,944.93,1.764]
[1610383322952,4.00959,945.52,944.93,1.764]
[1610383324955,4.00959,944.94,944.93,1.764]
[1610383325556,1.554,946.04,944.93,1.764]
[1610383326559,1.554,946.04,944.93,2.095]
[1610383326758,9.0,946.03,944.93,2.095]
[1610383326958,4.00959,944.94,944.93,2.095]
[1610383327558,4.00959,944.94,944.35,2.192]
[1610383327759,4.00959,944.94,943.94,1.978]
[1610383327960,4.00959,944.94,939.92,0.32673]
[1610383328359,4.00959,944.94,939.81,0.32678]
[1610383328558,43.00959,944.94,943.28,85.0764]
[1610383328760,43.00959,944.94,939.54,0.32686]
[1610383328960,4.00959,943.29,943.28,1.893]
[1610383329162,39.0,944.94,943.28,1.893]
[1610383329362,1.84,943.29,943.28,1.493]
[1610383329562,10.84,943.29,942.12,1.859]
[1610383330162,10.84,943.29,938.67,0.3272]
[1610383330365,10.84,943.29,938.06,0.32737]
[1610383330564,10.84,943.29,937.82,0.32737]
[1610383330763,30.0,943.19,937.82,0.32737]
[1610383330964,4.00959,940.5,939.81,4.00959]
[1610383331162,5.87159,940.5,937.51,0.32747]
[1610383331364,5.87159,940.5,937.31,0.32753]
[1610383331563,5.87159,940.5,937.32,0.32757]
[1610383331963,5.87159,940.5,937.11,0.32762]
[1610383332363,5.87159,940.5,937.15,0.32767]
[1610383332564,5.87159,940.5,936.86,0.3277]
[1610383332965,5.87159,940.5,936.77,0.65541]
[1610383332966,1.862,940.5,939.21,4.00959]
[1610383333164,1.862,940.5,939.21,1.584]
[1610383333366,1.862,940.5,936.59,0.32779]
[1610383333567,10.862,940.5,939.21,1.674]
[1610383334164,9.0,940.39,939.21,1.674]
[1610383334365,9.0,940.39,936.17,0.32789]
[1610383334766,9.0,940.39,936.27,0.328]
[1610383334965,4.00959,938.56,937.45,4.00959]
[1610383335166,6.00059,938.56,937.45,4.00959]
[1610383335366,6.00059,938.56,935.71,0.32806]
[1610383335567,6.00059,938.56,935.7,0.32812]
[1610383335971,6.00059,938.56,935.48,0.32815]
[1610383336168,6.00059,938.56,935.44,0.32817]
[1610383336467,6.00059,938.56,935.07,1.64086]
[1610383336468,6.00059,938.56,935.41,0.32818]
[1610383336869,4.00959,937.44,936.7,4.00959]
[1610383337066,5.73359,937.44,935.22,0.32825]
[1610383337267,5.73359,937.44,935.07,0.32829]
[1610383337268,0.4,935.48,935.07,0.32829]
[1610383337468,5.73359,937.44,935.01,0.32842]
[1610383337669,1.536,937.12,935.01,2.61842]
[1610383337870,1.536,937.12,935.01,2.29]
[1610383338872,4.00959,936.46,936.16,4.00959]
[1610383339272,4.00959,936.46,934.64,0.32851]
[1610383339472,4.00959,936.46,934.38,0.32856]
[1610383339671,4.00959,936.46,934.43,0.32858]
[1610383339870,4.00959,936.46,934.43,2.26858]
[1610383340072,4.00959,936.46,934.44,0.32857]
[1610383340271,1.879,936.63,934.44,0.32857]
[1610383340474,1.879,936.63,934.43,1.94]
[1610383340674,1.879,936.63,934.71,0.32846]
[1610383340873,1.536,937.12,936.62,4.00959]
[1610383341075,1.01539,942.03,936.62,6.07859]
[1610383341275,22.94139,943.08,936.62,6.07859]
[1610383341484,22.94139,943.08,936.72,30.0]
[1610383341675,9.0,942.28,936.72,30.0]
[1610383341885,11.285,942.28,936.72,30.0]
[1610383342074,2.285,942.28,936.72,30.0]
[1610383342277,2.285,942.28,937.02,0.32768]
[1610383342474,2.285,942.28,937.02,2.27968]
[1610383342677,2.285,942.28,938.05,1.03758]
[1610383342875,2.285,942.28,942.05,4.00959]
[1610383343275,2.285,942.28,941.49,1.616]
[1610383343482,2.285,942.28,938.08,0.32742]
[1610383343676,2.285,942.28,938.18,0.32754]
[1610383344475,2.285,942.28,938.19,0.32743]
[1610383344675,2.285,942.28,938.36,0.32742]
[1610383344875,4.00959,942.17,941.53,4.00959]
[1610383345276,4.00959,942.17,938.37,0.3273]
[1610383345682,10.1107,942.16,938.36,1.502]
[1610383346280,1.07132,941.75,938.36,1.502]
[1610383346477,3.02432,941.75,938.36,1.502]
[1610383346676,30.0,941.65,938.36,1.502]
[1610383346876,4.00959,939.08,938.71,4.00959]
[1610383347091,4.00959,939.08,938.36,1.502]
[1610383347879,9.0,939.07,936.62,2.069]
[1610383348091,4.00959,939.08,936.62,2.069]
[1610383348495,5.97359,939.08,937.02,1.772]
[1610383349882,1.964,939.08,937.02,1.772]
[1610383350487,1.797,939.8,937.02,1.772]
[1610383350689,1.953,941.75,937.02,1.772]
[1610383350889,4.00959,940.78,940.69,4.00959]
[1610383351090,4.00959,940.78,937.02,1.772]
[1610383351686,2.334,941.51,937.02,1.772]
[1610383351885,2.334,941.51,937.06,0.32783]
[1610383352084,2.334,941.51,937.13,0.32779]
[1610383352490,2.334,941.51,937.28,0.3277]
[1610383352679,1.953,941.75,937.61,0.32766]
[1610383352879,1.09751,944.5,939.4,4.00959]
[1610383352880,4.00959,940.64,939.4,4.00959]
[1610383353080,4.00959,940.64,937.61,1.83466]
[1610383353081,4.00959,940.64,937.69,0.32763]
[1610383353281,4.00959,940.64,937.61,1.507]
[1610383354082,30.0,940.54,937.61,1.507]
[1610383354282,31.588,940.54,937.61,1.507]
[1610383354484,1.588,940.54,937.61,1.507]
[1610383354884,4.00959,939.45,938.72,4.00959]
[1610383355084,2.205,941.0,938.72,4.00959]
[1610383355284,2.205,941.0,938.72,5.55659]
[1610383355685,9.0,941.77,938.72,5.55659]
[1610383356087,9.0,942.43,938.72,5.55659]
[1610383356288,9.0,941.76,938.72,5.55659]
[1610383356494,10.812,941.76,938.72,5.55659]
[1610383356691,30.0,941.66,938.72,5.55659]
[1610383356907,4.00959,938.85,938.72,1.547]
[1610383357300,4.00959,938.85,937.61,1.507]
[1610383357896,4.00959,938.85,936.21,0.32813]
[1610383358097,4.00959,938.85,936.06,0.32815]
[1610383358294,4.00959,938.85,936.14,0.32817]
[1610383358694,4.00959,938.85,935.94,0.32825]
[1610383358891,4.00959,937.2,936.87,4.00959]
[1610383359093,1.777,938.86,936.87,4.00959]
[1610383359293,1.777,938.86,936.87,5.80259]
[1610383359696,2.377,939.26,936.87,5.80259]
[1610383360494,9.0,939.25,936.87,1.793]
[1610383360692,2.377,939.26,936.87,1.793]
[1610383360894,2.377,939.26,936.97,4.00959]
[1610383361803,2.377,939.26,936.87,1.793]
[1610383362397,1.574,939.26,935.53,0.32823]
[1610383362598,1.574,939.26,931.16,30.0]
[1610383362599,1.574,939.26,935.48,0.32824]
[1610383362898,4.00959,937.03,936.86,4.00959]
[1610383363297,4.00959,937.03,935.08,1.31309]
[1610383363298,4.00959,937.03,935.29,0.3283]
[1610383363698,4.00959,937.03,935.13,0.32831]
[1610383363898,4.00959,937.03,934.97,0.32833]
[1610383364303,4.00959,937.03,934.98,0.3283]
[1610383364501,4.00959,937.03,934.98,2.5723]
[1610383364700,4.00959,937.03,935.0,0.32831]
[1610383364901,4.00959,936.7,936.39,4.00959]
[1610383365100,1.666,937.48,936.39,4.00959]
[1610383365301,1.666,937.48,936.39,6.44259]
[1610383365700,1.626,937.79,936.39,6.44259]
[1610383367002,4.00959,937.73,936.39,2.433]
[1610383368904,4.00959,936.74,936.39,2.433]
[1610383369104,2.349,937.18,936.39,2.433]
[1610383370407,2.349,937.18,936.38,2.07]
[1610383370806,2.349,937.18,935.42,79.4153]
[1610383371007,4.00959,936.36,935.42,79.4153]
[1610383373008,4.00959,935.43,935.3,2.144]
[1610383374210,4.00959,935.43,933.57,0.32887]
[1610383374410,4.00959,935.43,933.48,0.65774]
[1610383374411,4.00959,935.43,933.67,69.62115]
[1610383374809,4.00959,935.43,933.67,69.2923]
[1610383375008,2.24,936.27,934.47,4.00959]
[1610383375209,65.9234,936.4,934.47,6.45659]
[1610383375609,1.807,936.52,934.47,6.45659]
[1610383376209,30.0,939.74,934.47,6.45659]
[1610383376610,9.0,938.11,934.47,6.45659]
[1610383377011,4.00959,935.74,935.29,4.00959]
[1610383377811,2.011,936.64,935.29,4.00959]
[1610383378010,1.73,937.31,935.29,6.28459]
[1610383378211,78.531,937.15,935.29,6.28459]
[1610383379013,78.531,937.15,936.39,4.00959]
[1610383379213,78.531,937.15,936.39,1.666]
[1610383380818,9.0,937.14,936.39,1.666]
[1610383381517,9.0,937.14,935.29,2.275]
[1610383381717,4.00959,935.3,935.29,2.275]
[1610383381917,2.068,936.12,935.29,2.275]
[1610383383117,9.0,936.11,935.18,1.893]
[1610383383518,9.0,936.11,934.47,2.447]
[1610383383719,4.00959,934.48,933.36,186.5152]
[1610383383919,4.00959,934.48,932.57,6.0554]
[1610383384121,9.0,934.47,932.57,6.0554]
[1610383384319,10.823,934.47,932.57,6.0554]
[1610383384521,10.823,934.47,932.57,4.4614]
[1610383385121,87.851,934.13,932.57,4.4614]
[1610383385320,89.647,934.13,932.57,4.4614]
[1610383385522,9.0,934.12,932.0,0.32849]
[1610383385721,4.00959,932.01,932.0,0.32849]
[1610383385922,5.91759,932.01,930.49,0.3301]
[1610383386121,9.0,932.0,930.06,0.33018]
[1610383386321,5.91759,932.01,930.42,79.83]
[1610383386522,5.91759,932.01,930.42,1.988]
[1610383386922,9.0,932.0,930.42,1.613]
[1610383387122,1.17734,931.5,930.42,1.613]
[1610383387329,3.01934,931.5,928.86,1.32219]
[1610383387522,3.01934,931.5,838.0,50.0]
[1610383387523,3.01934,931.5,928.6,1.32242]
[1610383387722,4.00959,928.89,928.84,4.00959]
[1610383387922,1.504,930.9,928.38,1.32268]
[1610383388124,1.504,930.9,928.38,1.982]
[1610383388324,9.0,930.89,928.38,1.982]
[1610383388522,1.07943,930.67,928.38,1.982]
[1610383388922,9.0,930.66,928.38,1.982]
[1610383389725,4.00959,928.39,928.38,1.982]
[1610383391528,4.00959,928.39,926.41,1.32505331]
[1610383391728,4.00959,927.11,926.74,4.00959]
[1610383392127,4.00959,927.11,926.0,1.3260011]
[1610383392327,4.00959,927.11,925.94,1.32608964]
[1610383392729,4.00959,927.11,925.61,1.32688146]
[1610383393128,4.00959,927.11,925.45,1.32715228]
[1610383393330,4.00959,927.11,925.3,1.32720153]
[1610383393728,4.00959,925.33,925.13,1.32740064]
[1610383393929,9.0,927.11,925.13,1.32740064]
[1610383394130,9.0,927.11,925.13,1.635]
[1610383394830,9.0,927.01,925.13,1.635]
[1610383395030,11.205,927.01,925.13,1.635]
[1610383395831,4.00959,925.14,924.04,4.00959]
[1610383396038,4.00959,925.14,924.01,1.32856168]
[1610383396236,5.94959,925.14,923.67,1.32904679]
[1610383396431,5.94959,925.14,923.51,1.32927145]
[1610383396831,5.94959,925.14,921.47,5.98172154]
[1610383396832,5.94959,925.14,923.21,1.3296182]
[1610383397031,5.94959,925.14,921.18,5.98328188]
[1610383397032,5.94959,925.14,923.5,0.33250025]
[1610383397230,5.94959,925.14,923.5,2.58450025]
[1610383397437,9.0,927.0,923.5,2.252]
[1610383397633,2.205,927.01,923.5,2.252]
[1610383397835,2.205,927.01,925.69,4.00959]
[1610383398043,2.205,927.01,927.0,5.0]
[1610383398237,2.205,927.01,925.69,4.00959]
[1610383398433,1.07943,929.19,925.69,4.00959]
[1610383398635,1.09751,931.55,925.69,6.46759]
[1610383398833,9.0,929.78,925.69,6.46759]
[1610383399033,11.175,929.78,925.69,6.46759]
[1610383399236,2.175,929.78,925.69,6.46759]
[1610383399843,4.00959,928.36,925.69,2.458]
[1610383400038,6.48359,928.36,925.69,2.458]
[1610383400835,9.0,928.35,925.69,2.458]
[1610383401036,6.48359,928.36,925.69,2.458]
[1610383401835,4.00959,927.69,926.91,4.00959]
[1610383402035,5.74059,927.69,926.91,4.00959]
[1610383402238,1.731,927.69,926.91,4.00959]
[1610383403738,4.00959,927.43,926.91,4.00959]
[1610383403939,5.65059,927.43,926.91,4.00959]
[1610383404138,5.65059,927.43,926.01,0.6]
[1610383404539,1.641,927.43,926.01,0.6]
[1610383404740,1.717,927.43,926.01,0.6]
[1610383405740,1.717,927.43,926.3,4.00959]
[1610383405741,4.00959,926.96,926.3,4.00959]
[1610383406340,1.835,927.1,926.3,4.00959]
[1610383406542,1.717,927.43,926.3,5.63859]
[1610383407241,1.717,927.43,926.0,1.86849]
[1610383407440,1.717,927.43,925.4,80.5312]
[1610383407841,4.00959,926.93,926.21,4.00959]
[1610383408043,6.14459,926.93,926.21,4.00959]
[1610383408242,2.135,926.93,926.21,4.00959]
[1610383408842,1.7846,926.93,926.21,4.00959]
[1610383409746,1.7346,926.93,926.21,4.00959]
[1610383409948,1.7346,926.93,926.47,4.00959]
[1610383410347,67.109,927.33,926.47,4.00959]
[1610383411147,67.109,927.33,926.93,0.1]
[1610383412857,1.09751,932.07,926.93,0.1]
[1610383413048,76.967,930.38,927.33,0.728]
[1610383413448,76.967,930.38,927.33,0.9275]
[1610383413852,4.00959,928.7,928.08,4.00959]
[1610383414049,5.75959,928.7,927.33,0.9275]
[1610383414948,5.75959,928.7,926.82,80.664]
[1610383415350,5.75959,928.7,924.81,0.33220609]
[1610383415549,9.0,928.69,924.81,0.33220609]
[1610383415751,9.0,928.69,924.59,0.33214603]
[1610383415950,1.75,928.7,925.89,4.00959]
[1610383417951,4.00959,926.95,926.94,4.00959]
[1610383418149,65.6806,928.17,926.94,4.00959]
[1610383418350,65.6806,928.17,925.41,2.358]
[1610383418752,67.5486,928.17,925.41,2.358]
[1610383419550,67.5486,928.17,925.24,63.3847]
[1610383419750,9.0,928.16,925.24,63.3847]
[1610383419951,67.5486,928.17,926.16,4.00959]
[1610383419952,4.00959,926.57,926.16,4.00959]
[1610383420151,5.79259,926.57,926.16,4.00959]
[1610383420752,5.79259,926.57,925.24,63.3847]
[1610383420954,5.79259,926.57,924.99,2.35]
[1610383421353,5.79259,926.57,924.42,79.0488]
[1610383421854,4.00959,924.74,924.42,79.0488]
[1610383422054,6.27559,924.74,924.42,79.0488]
[1610383422555,6.27559,924.74,923.66,6.4516]
[1610383423954,4.00959,923.67,923.66,6.4516]
[1610383424152,5.53159,923.67,923.66,6.4516]
[1610383424354,5.53159,923.67,922.08,0.33309632]
[1610383424554,5.53159,923.67,922.04,0.33308275]
[1610383424754,5.53159,923.67,921.86,0.9984965]
[1610383424957,5.53159,923.67,921.95,0.33310698]
[1610383425154,5.53159,923.67,921.95,2.60910698]
[1610383425355,5.53159,923.67,921.99,0.33310234]
[1610383425555,2.266,924.74,921.95,2.276]
[1610383425955,2.266,924.74,923.7,4.00959]
[1610383426157,10.8011,924.73,923.7,4.00959]
[1610383426857,10.8011,924.73,922.11,0.33303681]
[1610383427257,10.8011,924.73,922.0,0.33312742]
[1610383427657,10.8011,924.73,921.96,72.1898]
[1610383427859,10.8011,924.73,923.09,4.00959]
[1610383428059,10.8011,924.73,922.62,1.51]
[1610383428259,71.1647,924.73,922.62,1.51]
[1610383429961,4.00959,923.39,922.88,4.00959]
[1610383430561,1.948,923.47,922.88,4.00959]
[1610383431161,71.1647,924.73,922.88,4.00959]
[1610383431961,90.7334,924.55,922.84,2.071]
[1610383432160,92.6934,924.55,922.84,2.071]
[1610383432561,88.6748,924.55,922.84,2.071]
[1610383433160,86.7148,924.55,922.84,2.071]
[1610383433360,2.327,926.33,922.85,87.874]
[1610383433361,2.349,926.05,922.85,87.874]
[1610383433560,2.349,926.05,923.09,0.33289843]
[1610383433763,57.3137,926.43,923.09,2.08889843]
[1610383433960,57.3137,926.43,926.21,4.00959]
[1610383434360,62.4278,927.89,926.21,4.00959]
[1610383434962,62.4278,927.89,926.21,6.23259]
[1610383435164,0.101,928.17,926.43,3.3]
[1610383435362,68.4789,929.68,927.89,1.7]
[1610383435765,85.8729,931.37,927.89,1.7]
[1610383435963,85.8729,931.37,930.62,4.00959]
[1610383436162,85.8729,931.37,927.89,1.7]
[1610383436363,87.5439,931.37,927.89,1.7]
[1610383437664,1.671,931.37,929.17,85.8745]
[1610383437864,4.00959,930.5,929.75,4.00959]
[1610383438064,6.20559,930.5,929.75,4.00959]
[1610383438264,6.20559,930.5,929.17,85.8745]
[1610383438666,5.81009,930.5,929.17,85.8745]
[1610383439970,4.00959,929.85,929.45,4.00959]
[1610383440369,6.40759,929.85,929.45,4.00959]
[1610383440770,6.40759,929.85,929.17,85.8745]
[1610383440971,6.40759,929.85,927.89,1.7]
[1610383441371,63.3983,929.44,927.89,1.7]
[1610383441570,65.0503,929.44,927.89,1.7]
[1610383441969,4.00959,927.9,927.89,1.5947]
[1610383442172,4.00959,927.9,926.47,83.4388]
[1610383443470,5.67159,927.9,926.47,83.4388]
[1610383443869,4.00959,927.08,926.51,4.00959]
[1610383444071,6.20359,927.08,926.51,4.00959]
[1610383444877,6.20359,927.08,926.47,83.4388]
[1610383445080,6.20359,927.08,926.43,3.3]
[1610383445277,6.20359,927.08,924.2,0.3323592]
[1610383445674,6.20359,927.08,924.1,0.33236326]
[1610383445876,4.00959,926.05,925.52,4.00959]
[1610383446278,2.194,927.08,925.52,4.00959]
[1610383446478,2.194,927.08,924.83,89.6853]
[1610383447879,4.00959,926.41,925.98,4.00959]
[1610383448079,1.778,926.41,924.83,89.6853]
[1610383448279,1.778,926.41,924.62,71.9782]
[1610383448478,2.194,927.08,924.62,71.9782]
[1610383449179,78.304,927.74,924.62,71.9782]
[1610383449980,78.304,927.74,926.16,4.00959]
[1610383450581,1.662,927.9,926.16,4.00959]
[1610383450980,76.6282,928.5,926.16,4.00959]
[1610383451381,76.6282,928.5,927.74,1.7915]
[1610383451784,1.07132,931.31,927.74,1.7915]
[1610383451981,3.15829,928.19,927.79,4.00959]
[1610383452181,4.99129,928.19,927.79,4.00959]
[1610383452581,4.99129,928.19,927.74,1.7915]
[1610383453183,4.99129,928.19,926.16,1.88]
[1610383453982,4.00959,927.85,927.61,4.00959]
[1610383454482,5.82159,927.85,927.61,4.00959]
[1610383455082,1.812,927.85,927.61,4.00959]
[1610383456082,1.812,927.85,927.84,4.00959]
[1610383456283,4.00959,928.1,925.19,0.33210063]
[1610383456482,4.00959,928.1,926.1,1.649]
[1610383457484,4.00959,928.1,925.83,71.725]
[1610383458084,1.833,928.19,926.07,4.00959]
[1610383458284,0.6,927.84,926.07,4.00959]
[1610383458487,2.304,927.84,926.07,4.00959]
[1610383459588,1.5026,927.84,926.07,4.00959]
[1610383459989,78.2003,929.19,927.84,2.696]
[1610383460189,87.9889,928.72,927.84,2.696]
[1610383460389,89.9099,928.72,927.84,2.696]
[1610383460588,89.9099,928.72,927.19,4.00959]
[1610383460788,89.9099,928.72,926.22,2.393]
[1610383461191,89.9099,928.72,925.44,81.4224]
[1610383462092,4.00959,927.6,927.07,4.00959]
[1610383462289,5.75059,927.6,925.44,81.4224]
[1610383463289,1.741,927.6,925.44,81.4224]
[1610383463692,89.9099,928.72,925.44,81.4224]
[1610383464090,89.9099,928.72,928.14,4.00959]
[1610383465691,1.921,928.72,928.14,4.00959]
[1610383465890,65.9199,930.16,928.14,4.00959]
[1610383466090,4.00959,929.27,929.03,4.00959]
[1610383466490,6.04159,929.27,929.03,4.00959]